[Event "Early-Titled-Tuesday-Blitz-February-13-2024"]
[Site "Chess.com"]
[Date "2024.02.13"]
[Round "10"]
[White "Hikaru"]
[Black "Msb2"]
[Result "0-1"]
[WhiteElo "3351"]
[BlackElo "3016"]
[TimeControl "180+1"]
[EndTime "9:58:33 PST"]
[Termination "Msb2 won by resignation"]

1. d4 {[%clk 0:03:00.9]} 1... d5 {[%clk 0:03:00.3]} 2. Bg5 {[%clk 0:03:00.7]}
2... h6 {[%clk 0:03:00.6]} 3. Bh4 {[%clk 0:03:00.8]} 3... c5 {[%clk 0:03:00.7]}
4. dxc5 {[%clk 0:02:59]} 4... g5 {[%clk 0:03:00.9]} 5. Bg3 {[%clk 0:02:59.1]}
5... Bg7 {[%clk 0:03:01.6]} 6. c3 {[%clk 0:02:57.9]} 6... Na6 {[%clk 0:03:02.1]}
7. Nf3 {[%clk 0:02:53.8]} 7... Nxc5 {[%clk 0:03:00.3]} 8. e3 {[%clk 0:02:53.3]}
8... Nf6 {[%clk 0:02:59]} 9. Be5 {[%clk 0:02:53.3]} 9... Qb6 {[%clk 0:02:48.7]}
10. Nbd2 {[%clk 0:02:45.1]} 10... Bf5 {[%clk 0:02:40.6]} 11. Bd4 {[%clk
0:02:39.4]} 11... Qc7 {[%clk 0:02:37.4]} 12. Bb5+ {[%clk 0:02:38.2]} 12... Bd7
{[%clk 0:02:35.4]} 13. Be2 {[%clk 0:02:25.9]} 13... Bf5 {[%clk 0:02:31.3]} 14.
h4 {[%clk 0:02:20.9]} 14... g4 {[%clk 0:02:26.5]} 15. Ne5 {[%clk 0:02:18.7]}
15... h5 {[%clk 0:02:24.8]} 16. Bb5+ {[%clk 0:02:18.3]} 16... Kf8 {[%clk
0:02:19.4]} 17. f4 {[%clk 0:02:15]} 17... a6 {[%clk 0:02:14.7]} 18. Be2 {[%clk
0:02:14.8]} 18... Nfe4 {[%clk 0:02:09.8]} 19. Nb3 {[%clk 0:01:22.4]} 19... Na4
{[%clk 0:01:40.5]} 20. Nd3 {[%clk 0:01:18.5]} 20... Ng3 {[%clk 0:01:39]} 21.
Bxg7+ {[%clk 0:01:09.9]} 21... Kxg7 {[%clk 0:01:39.9]} 22. Nd4 {[%clk
0:01:10.4]} 22... Bxd3 {[%clk 0:01:27.6]} 23. Qxd3 {[%clk 0:01:10.9]} 23... Nxh1
{[%clk 0:01:12.8]} 24. Nf5+ {[%clk 0:01:07.6]} 24... Kf6 {[%clk 0:00:53.8]} 25.
Qd4+ {[%clk 0:00:18.9]} 25... e5 {[%clk 0:00:53.6]} 26. Qxa4 {[%clk 0:00:15.6]}
26... Kxf5 {[%clk 0:00:50.8]} 27. O-O-O {[%clk 0:00:11.7]} 27... Ng3 {[%clk
0:00:48]} 28. Bd3+ {[%clk 0:00:08.6]} 28... Kf6 {[%clk 0:00:47.3]} 29. Bc2
{[%clk 0:00:08.9]} 29... Rad8 {[%clk 0:00:42.7]} 30. Kb1 {[%clk 0:00:09.5]}
30... Kg7 {[%clk 0:00:42.3]} 31. Qb4 {[%clk 0:00:04.9]} 31... Rh6 {[%clk
0:00:40]} 32. f5 {[%clk 0:00:04.2]} 32... Rb6 {[%clk 0:00:38.9]} 33. Qa5 {[%clk
0:00:04.8]} 0-1

[Event "Early-Titled-Tuesday-Blitz-February-13-2024"]
[Site "Chess.com"]
[Date "2024.02.13"]
[Round "10"]
[White "ClaudiaSof"]
[Black "Cirky"]
[Result "0-1"]
[WhiteElo "2326"]
[BlackElo "2484"]
[TimeControl "180+1"]
[EndTime "9:58:36 PST"]
[Termination "Cirky won by checkmate"]

1. d4 {[%clk 0:03:00.9]} 1... Nf6 {[%clk 0:02:56.5]} 2. Bf4 {[%clk 0:02:57.9]}
2... d5 {[%clk 0:02:52.8]} 3. e3 {[%clk 0:02:57.2]} 3... e6 {[%clk 0:02:48.5]}
4. Nd2 {[%clk 0:02:57.1]} 4... c5 {[%clk 0:02:47.6]} 5. c3 {[%clk 0:02:57.2]}
5... Nc6 {[%clk 0:02:48.2]} 6. Ngf3 {[%clk 0:02:57.1]} 6... cxd4 {[%clk
0:02:48.9]} 7. exd4 {[%clk 0:02:56.8]} 7... Nh5 {[%clk 0:02:48.1]} 8. Be3 {[%clk
0:02:57.1]} 8... Bd6 {[%clk 0:02:48.1]} 9. Ne5 {[%clk 0:02:56.8]} 9... g6 {[%clk
0:02:46.7]} 10. Nd3 {[%clk 0:02:56.7]} 10... O-O {[%clk 0:02:45.4]} 11. g3
{[%clk 0:02:56.8]} 11... f5 {[%clk 0:02:44.7]} 12. Bg2 {[%clk 0:02:54.3]} 12...
f4 {[%clk 0:02:39.3]} 13. gxf4 {[%clk 0:02:35.6]} 13... Nxf4 {[%clk 0:02:39.2]}
14. Nxf4 {[%clk 0:02:35.4]} 14... Bxf4 {[%clk 0:02:39.3]} 15. Qe2 {[%clk
0:02:30.9]} 15... e5 {[%clk 0:02:04.9]} 16. dxe5 {[%clk 0:02:05.7]} 16... Bxe5
{[%clk 0:01:51.3]} 17. O-O-O {[%clk 0:02:04.9]} 17... Qa5 {[%clk 0:01:16.7]} 18.
Kb1 {[%clk 0:01:56.3]} 18... Bf5+ {[%clk 0:01:15.4]} 19. Ka1 {[%clk 0:01:51.2]}
19... Rad8 {[%clk 0:01:15.1]} 20. Nb3 {[%clk 0:01:49.2]} 20... Qc7 {[%clk
0:00:57.6]} 21. Bxd5+ {[%clk 0:01:45.3]} 21... Kh8 {[%clk 0:00:56]} 22. h4
{[%clk 0:01:38.5]} 22... a5 {[%clk 0:00:53]} 23. h5 {[%clk 0:01:10.3]} 23... a4
{[%clk 0:00:52.5]} 24. hxg6 {[%clk 0:01:08.8]} 24... Bxg6 {[%clk 0:00:49.7]} 25.
Bxc6 {[%clk 0:00:49.7]} 25... bxc6 {[%clk 0:00:30.5]} 26. Rxd8 {[%clk
0:00:39.6]} 26... Rxd8 {[%clk 0:00:28.7]} 27. Nd4 {[%clk 0:00:34.4]} 27... a3
{[%clk 0:00:27.6]} 28. Ne6 {[%clk 0:00:22.2]} 28... axb2+ {[%clk 0:00:27.8]} 29.
Qxb2 {[%clk 0:00:22.1]} 29... Qa5 {[%clk 0:00:27.1]} 30. Nxd8 {[%clk 0:00:21]}
30... Qxc3 {[%clk 0:00:19]} 31. Qxc3 {[%clk 0:00:19.2]} 31... Bxc3# {[%clk
0:00:19]} 0-1

[Event "Early-Titled-Tuesday-Blitz-February-13-2024"]
[Site "Chess.com"]
[Date "2024.02.13"]
[Round "10"]
[White "Lion_DL"]
[Black "vladgoncharov"]
[Result "0-1"]
[WhiteElo "2485"]
[BlackElo "2633"]
[TimeControl "180+1"]
[EndTime "9:58:39 PST"]
[Termination "vladgoncharov won by resignation"]

1. d4 {[%clk 0:03:00.9]} 1... Nf6 {[%clk 0:02:59.5]} 2. c4 {[%clk 0:03:01.4]}
2... c5 {[%clk 0:02:59.5]} 3. d5 {[%clk 0:03:01.2]} 3... e6 {[%clk 0:02:59.8]}
4. Nc3 {[%clk 0:03:00.9]} 4... exd5 {[%clk 0:03:00.1]} 5. cxd5 {[%clk
0:03:01.8]} 5... d6 {[%clk 0:03:00.5]} 6. Nf3 {[%clk 0:02:59.8]} 6... g6 {[%clk
0:02:59.4]} 7. Bf4 {[%clk 0:03:00.1]} 7... a6 {[%clk 0:02:59.3]} 8. a4 {[%clk
0:02:59.3]} 8... Bg7 {[%clk 0:02:59]} 9. h3 {[%clk 0:03:00]} 9... O-O {[%clk
0:02:58.5]} 10. e3 {[%clk 0:03:00.7]} 10... Qe7 {[%clk 0:02:58.7]} 11. Bd3
{[%clk 0:02:58.8]} 11... Nbd7 {[%clk 0:02:56.4]} 12. O-O {[%clk 0:02:57.8]}
12... Ne8 {[%clk 0:02:56]} 13. Nd2 {[%clk 0:02:51.3]} 13... Rb8 {[%clk
0:02:47.1]} 14. Nc4 {[%clk 0:02:40.6]} 14... Ne5 {[%clk 0:02:43.7]} 15. Bxe5
{[%clk 0:02:30.2]} 15... Bxe5 {[%clk 0:02:42.7]} 16. Nxe5 {[%clk 0:02:26.6]}
16... Qxe5 {[%clk 0:02:42.3]} 17. Qe2 {[%clk 0:02:20.5]} 17... Nc7 {[%clk
0:02:40]} 18. f4 {[%clk 0:02:17.9]} 18... Qe7 {[%clk 0:02:36.7]} 19. e4 {[%clk
0:02:16.3]} 19... Re8 {[%clk 0:02:32.7]} 20. Rae1 {[%clk 0:02:15.2]} 20... b5
{[%clk 0:02:21]} 21. axb5 {[%clk 0:02:09.8]} 21... axb5 {[%clk 0:02:18.7]} 22.
Nxb5 {[%clk 0:02:08.7]} 22... Nxb5 {[%clk 0:02:14.6]} 23. Bxb5 {[%clk
0:02:09.6]} 23... Bd7 {[%clk 0:02:15]} 24. Bxd7 {[%clk 0:02:07.9]} 24... Qxd7
{[%clk 0:02:14.5]} 25. f5 {[%clk 0:01:50.9]} 25... Rb4 {[%clk 0:02:00.4]} 26.
Qg4 {[%clk 0:01:45]} 26... Qe7 {[%clk 0:01:49.6]} 27. f6 {[%clk 0:01:41.2]}
27... Qe5 {[%clk 0:01:35.2]} 28. Qh4 {[%clk 0:01:24.4]} 28... h5 {[%clk
0:01:21.2]} 29. Rf5 {[%clk 0:01:06.5]} 29... Qd4+ {[%clk 0:01:20.7]} 30. Kh2
{[%clk 0:01:04.8]} 30... Rxe4 {[%clk 0:01:20.2]} 31. Rxh5 {[%clk 0:00:44]} 31...
gxh5 {[%clk 0:01:08.5]} 32. Qg3+ {[%clk 0:00:25]} 32... Kf8 {[%clk 0:01:05.3]}
33. Qxd6+ {[%clk 0:00:23.3]} 33... Ke8 {[%clk 0:00:51]} 34. Qc6+ {[%clk
0:00:22.9]} 34... Kd8 {[%clk 0:00:51.1]} 35. Qd6+ {[%clk 0:00:20.5]} 35... Kc8
{[%clk 0:00:51.4]} 36. Qf8+ {[%clk 0:00:19.9]} 36... Kb7 {[%clk 0:00:49.3]} 37.
Qxf7+ {[%clk 0:00:17.7]} 37... Kb6 {[%clk 0:00:47.5]} 38. Ra1 {[%clk 0:00:12.9]}
38... Qe5+ {[%clk 0:00:47.4]} 0-1

[Event "Early-Titled-Tuesday-Blitz-February-13-2024"]
[Site "Chess.com"]
[Date "2024.02.13"]
[Round "10"]
[White "temiksmozg"]
[Black "RobertoJBM"]
[Result "1-0"]
[WhiteElo "2637"]
[BlackElo "2787"]
[TimeControl "180+1"]
[EndTime "9:58:42 PST"]
[Termination "temiksmozg won by resignation"]

1. e4 {[%clk 0:02:51]} 1... c6 {[%clk 0:02:59.1]} 2. d4 {[%clk 0:02:49.9]} 2...
d5 {[%clk 0:03:00]} 3. e5 {[%clk 0:02:49.8]} 3... Bf5 {[%clk 0:02:59.6]} 4. Nf3
{[%clk 0:02:48.3]} 4... e6 {[%clk 0:02:59.3]} 5. Be2 {[%clk 0:02:47]} 5... Nd7
{[%clk 0:02:59.2]} 6. O-O {[%clk 0:02:47.6]} 6... Bg6 {[%clk 0:02:59.4]} 7. Nbd2
{[%clk 0:02:40.1]} 7... Nh6 {[%clk 0:02:59.2]} 8. a4 {[%clk 0:02:35.1]} 8... Nf5
{[%clk 0:02:58.3]} 9. a5 {[%clk 0:02:32.2]} 9... Be7 {[%clk 0:02:57.1]} 10. c3
{[%clk 0:02:30.2]} 10... O-O {[%clk 0:02:56.5]} 11. b4 {[%clk 0:02:30.1]} 11...
b6 {[%clk 0:02:55.8]} 12. Ne1 {[%clk 0:02:26.5]} 12... c5 {[%clk 0:02:55]} 13.
g4 {[%clk 0:02:21.3]} 13... Nh4 {[%clk 0:02:50.8]} 14. bxc5 {[%clk 0:02:14.1]}
14... bxc5 {[%clk 0:02:50.5]} 15. Ng2 {[%clk 0:02:10.3]} 15... Nxg2 {[%clk
0:02:48]} 16. Kxg2 {[%clk 0:02:11.2]} 16... cxd4 {[%clk 0:02:40.6]} 17. cxd4
{[%clk 0:02:12.1]} 17... Rc8 {[%clk 0:02:34.8]} 18. Ba3 {[%clk 0:02:05.6]} 18...
f6 {[%clk 0:02:06.6]} 19. exf6 {[%clk 0:01:44]} 19... Nxf6 {[%clk 0:02:00.2]}
20. f3 {[%clk 0:01:35.9]} 20... h5 {[%clk 0:01:53.6]} 21. h3 {[%clk 0:01:35.6]}
21... Bxa3 {[%clk 0:01:49.1]} 22. Rxa3 {[%clk 0:01:35.1]} 22... Qd6 {[%clk
0:01:49.7]} 23. Re3 {[%clk 0:01:28.4]} 23... Qb4 {[%clk 0:01:30]} 24. Nb3 {[%clk
0:01:10.2]} 24... Bc2 {[%clk 0:01:00.4]} 25. Qd2 {[%clk 0:01:10]} 25... Qxd2
{[%clk 0:00:54.7]} 26. Nxd2 {[%clk 0:01:10.9]} 26... Kf7 {[%clk 0:00:53.5]} 27.
Rc1 {[%clk 0:01:08.5]} 27... hxg4 {[%clk 0:00:50.6]} 28. hxg4 {[%clk 0:01:07.8]}
28... Rc7 {[%clk 0:00:45.2]} 29. Nb3 {[%clk 0:01:02.1]} 29... Nxg4 {[%clk
0:00:35.2]} 30. fxg4 {[%clk 0:00:58.5]} 30... Rb8 {[%clk 0:00:32.1]} 31. Nc5
{[%clk 0:00:36.2]} 31... Rb2 {[%clk 0:00:30.1]} 32. Kg3 {[%clk 0:00:33]} 32...
Rc6 {[%clk 0:00:24.1]} 33. Nd3 {[%clk 0:00:27.2]} 33... Rb3 {[%clk 0:00:16.8]}
34. Ne5+ {[%clk 0:00:26.2]} 1-0

[Event "Early-Titled-Tuesday-Blitz-February-13-2024"]
[Site "Chess.com"]
[Date "2024.02.13"]
[Round "10"]
[White "PositionalPanther"]
[Black "JeFumeDesClopes"]
[Result "1/2-1/2"]
[WhiteElo "2453"]
[BlackElo "2602"]
[TimeControl "180+1"]
[EndTime "9:58:47 PST"]
[Termination "Game drawn by repetition"]

1. Nf3 {[%clk 0:02:58.1]} 1... g6 {[%clk 0:02:59.7]} 2. g3 {[%clk 0:02:58.1]}
2... Bg7 {[%clk 0:03:00.3]} 3. Bg2 {[%clk 0:02:58.8]} 3... e5 {[%clk 0:03:00.8]}
4. O-O {[%clk 0:02:59.5]} 4... Ne7 {[%clk 0:03:01.4]} 5. e4 {[%clk 0:02:59]}
5... O-O {[%clk 0:03:01.3]} 6. c3 {[%clk 0:02:58.6]} 6... d5 {[%clk 0:03:00.7]}
7. d3 {[%clk 0:02:58]} 7... Nbc6 {[%clk 0:03:00.5]} 8. Qc2 {[%clk 0:02:55.9]}
8... h6 {[%clk 0:02:59.9]} 9. a4 {[%clk 0:02:55.5]} 9... a5 {[%clk 0:02:59.1]}
10. Na3 {[%clk 0:02:55.2]} 10... Be6 {[%clk 0:02:59]} 11. Nb5 {[%clk 0:02:54.5]}
11... Qd7 {[%clk 0:02:56.3]} 12. Re1 {[%clk 0:02:53.4]} 12... Kh7 {[%clk
0:02:54.9]} 13. Be3 {[%clk 0:02:43.1]} 13... f5 {[%clk 0:02:50.1]} 14. Bc5
{[%clk 0:02:43.2]} 14... Rae8 {[%clk 0:02:33.7]} 15. exd5 {[%clk 0:02:35.3]}
15... Bxd5 {[%clk 0:02:31.5]} 16. d4 {[%clk 0:02:32.3]} 16... e4 {[%clk
0:02:27.2]} 17. Ne5 {[%clk 0:02:24.1]} 17... Nxe5 {[%clk 0:02:25.6]} 18. dxe5
{[%clk 0:02:24.3]} 18... Bxe5 {[%clk 0:02:09.3]} 19. Rad1 {[%clk 0:02:21.1]}
19... Qe6 {[%clk 0:02:06]} 20. Bxe7 {[%clk 0:01:56.8]} 20... Rxe7 {[%clk
0:02:04.6]} 21. Nd4 {[%clk 0:01:53.7]} 21... Bxd4 {[%clk 0:01:58]} 22. Rxd4
{[%clk 0:01:54.6]} 22... c5 {[%clk 0:01:57.3]} 23. Rd2 {[%clk 0:01:53.3]} 23...
Bb3 {[%clk 0:01:56.7]} 24. Qb1 {[%clk 0:01:53.5]} 24... Bxa4 {[%clk 0:01:42]}
25. f3 {[%clk 0:01:53.2]} 25... Bc6 {[%clk 0:01:41.3]} 26. fxe4 {[%clk
0:01:52.4]} 26... fxe4 {[%clk 0:01:35]} 27. Rde2 {[%clk 0:01:51.9]} 27... Rfe8
{[%clk 0:01:27.8]} 28. Bxe4 {[%clk 0:01:45.5]} 28... Bxe4 {[%clk 0:01:27.5]} 29.
Rxe4 {[%clk 0:01:45.6]} 29... Qxe4 {[%clk 0:01:26.7]} 30. Rxe4 {[%clk
0:01:45.7]} 30... Rxe4 {[%clk 0:01:27.6]} 31. Qa2 {[%clk 0:01:45.7]} 31... Re1+
{[%clk 0:00:57.5]} 32. Kg2 {[%clk 0:01:43]} 32... R1e2+ {[%clk 0:00:55]} 33. Kh3
{[%clk 0:01:42.3]} 33... R8e7 {[%clk 0:00:50.4]} 34. Qxa5 {[%clk 0:01:41]} 34...
Rxb2 {[%clk 0:00:50.8]} 35. Qxc5 {[%clk 0:01:40.2]} 35... Rbe2 {[%clk 0:00:51]}
36. Qd6 {[%clk 0:01:27.2]} 36... R2e6 {[%clk 0:00:50.8]} 37. Qd8 {[%clk
0:01:26.5]} 37... Rg7 {[%clk 0:00:48.4]} 38. Kg2 {[%clk 0:01:08.5]} 38... Rc6
{[%clk 0:00:48.2]} 39. h4 {[%clk 0:01:06.7]} 39... h5 {[%clk 0:00:45.4]} 40. g4
{[%clk 0:01:00.2]} 40... Rxc3 {[%clk 0:00:37.6]} 41. gxh5 {[%clk 0:00:57.8]}
41... gxh5+ {[%clk 0:00:38.5]} 42. Kf2 {[%clk 0:00:57]} 42... Rc5 {[%clk
0:00:20.5]} 43. Qd3+ {[%clk 0:00:55.4]} 43... Kh8 {[%clk 0:00:18.8]} 44. Qd8+
{[%clk 0:00:54.6]} 44... Kh7 {[%clk 0:00:18.5]} 45. Qd3+ {[%clk 0:00:54.9]}
45... Rg6 {[%clk 0:00:15]} 46. Qd7+ {[%clk 0:00:53.6]} 46... Rg7 {[%clk
0:00:14.9]} 47. Qd3+ {[%clk 0:00:47.2]} 1/2-1/2

[Event "Early-Titled-Tuesday-Blitz-February-13-2024"]
[Site "Chess.com"]
[Date "2024.02.13"]
[Round "10"]
[White "emeli_chess"]
[Black "DvaHrasta"]
[Result "1/2-1/2"]
[WhiteElo "2379"]
[BlackElo "2493"]
[TimeControl "180+1"]
[EndTime "9:58:48 PST"]
[Termination "Game drawn by repetition"]

1. d4 {[%clk 0:02:55.3]} 1... Nf6 {[%clk 0:02:57.2]} 2. c4 {[%clk 0:02:55.2]}
2... e6 {[%clk 0:02:57.2]} 3. Nc3 {[%clk 0:02:55.4]} 3... Bb4 {[%clk 0:02:56.8]}
4. Qc2 {[%clk 0:02:55.6]} 4... d5 {[%clk 0:02:56.4]} 5. cxd5 {[%clk 0:02:55.2]}
5... exd5 {[%clk 0:02:50.2]} 6. Bg5 {[%clk 0:02:54.3]} 6... O-O {[%clk
0:02:48.8]} 7. e3 {[%clk 0:02:52.2]} 7... h6 {[%clk 0:02:47.8]} 8. Bxf6 {[%clk
0:02:51.4]} 8... Qxf6 {[%clk 0:02:46.8]} 9. a3 {[%clk 0:02:51.6]} 9... Bxc3+
{[%clk 0:02:46.3]} 10. Qxc3 {[%clk 0:02:51.7]} 10... c6 {[%clk 0:02:38]} 11. Nf3
{[%clk 0:02:51.5]} 11... Bg4 {[%clk 0:02:35.4]} 12. Be2 {[%clk 0:02:51.6]} 12...
Nd7 {[%clk 0:02:34.7]} 13. O-O {[%clk 0:02:51.3]} 13... Bxf3 {[%clk 0:02:33.6]}
14. Bxf3 {[%clk 0:02:50.6]} 14... a5 {[%clk 0:02:33.7]} 15. Rfc1 {[%clk
0:02:48.8]} 15... a4 {[%clk 0:02:32.5]} 16. b4 {[%clk 0:02:31.7]} 16... axb3
{[%clk 0:02:29.8]} 17. Qxb3 {[%clk 0:02:31.6]} 17... b5 {[%clk 0:02:24.7]} 18.
a4 {[%clk 0:02:31.6]} 18... bxa4 {[%clk 0:02:14.7]} 19. Rxa4 {[%clk 0:02:30.9]}
19... Rab8 {[%clk 0:02:01]} 20. Qc2 {[%clk 0:02:20.6]} 20... Rfc8 {[%clk
0:01:55.5]} 21. Bg4 {[%clk 0:02:12.5]} 21... Qd6 {[%clk 0:01:39]} 22. Bxd7
{[%clk 0:02:10.7]} 22... Qxd7 {[%clk 0:01:36.9]} 23. h3 {[%clk 0:02:00.3]} 23...
Rb5 {[%clk 0:01:29.4]} 24. Qd3 {[%clk 0:01:51.1]} 24... g6 {[%clk 0:01:22.5]}
25. Rca1 {[%clk 0:01:47.1]} 25... c5 {[%clk 0:01:15.3]} 26. dxc5 {[%clk
0:01:44.8]} 26... Rbxc5 {[%clk 0:01:14.7]} 27. Rd4 {[%clk 0:01:27.7]} 27... Rc1+
{[%clk 0:01:09]} 28. Rxc1 {[%clk 0:01:27.1]} 28... Rxc1+ {[%clk 0:01:06.2]} 29.
Kh2 {[%clk 0:01:27.3]} 29... Rc5 {[%clk 0:00:55.9]} 30. g3 {[%clk 0:01:24.3]}
30... Qc6 {[%clk 0:00:43.3]} 31. Kg2 {[%clk 0:01:07.8]} 31... h5 {[%clk
0:00:42]} 32. h4 {[%clk 0:01:07.4]} 32... Kg7 {[%clk 0:00:40.6]} 33. Kh2 {[%clk
0:01:00.4]} 33... Rc3 {[%clk 0:00:34.8]} 34. Qd1 {[%clk 0:00:56.9]} 34... Rc1
{[%clk 0:00:33.5]} 35. Qe2 {[%clk 0:00:52.5]} 35... Rb1 {[%clk 0:00:22.3]} 36.
Rd1 {[%clk 0:00:48.8]} 36... Rxd1 {[%clk 0:00:19.2]} 37. Qxd1 {[%clk 0:00:48.9]}
37... Qc4 {[%clk 0:00:19.2]} 38. Kg2 {[%clk 0:00:47.6]} 38... Kf6 {[%clk
0:00:19.4]} 39. Qa1+ {[%clk 0:00:46.5]} 39... Ke6 {[%clk 0:00:19.3]} 40. Qg7
{[%clk 0:00:45.1]} 40... Qe4+ {[%clk 0:00:18.5]} 41. Kg1 {[%clk 0:00:44.5]}
41... Qb1+ {[%clk 0:00:18.2]} 42. Kg2 {[%clk 0:00:43.8]} 42... Qe4+ {[%clk
0:00:18.3]} 43. Kg1 {[%clk 0:00:44]} 43... Qb1+ {[%clk 0:00:18.4]} 44. Kg2
{[%clk 0:00:44.4]} 44... Qe4+ {[%clk 0:00:18.5]} 1/2-1/2

[Event "Early-Titled-Tuesday-Blitz-February-13-2024"]
[Site "Chess.com"]
[Date "2024.02.13"]
[Round "10"]
[White "HanSchut"]
[Black "LileKoridze"]
[Result "0-1"]
[WhiteElo "2261"]
[BlackElo "2415"]
[TimeControl "180+1"]
[EndTime "9:58:48 PST"]
[Termination "LileKoridze won on time"]

1. e4 {[%clk 0:03:00.9]} 1... c5 {[%clk 0:02:59.4]} 2. Nf3 {[%clk 0:03:01.2]}
2... d6 {[%clk 0:02:59.4]} 3. d4 {[%clk 0:03:01.7]} 3... cxd4 {[%clk 0:02:59.7]}
4. Nxd4 {[%clk 0:03:02.6]} 4... Nf6 {[%clk 0:03:00.2]} 5. f3 {[%clk 0:03:03.3]}
5... e5 {[%clk 0:02:56.4]} 6. Bb5+ {[%clk 0:03:03.5]} 6... Bd7 {[%clk
0:02:55.2]} 7. Bxd7+ {[%clk 0:03:02.9]} 7... Nbxd7 {[%clk 0:02:56.1]} 8. Nf5
{[%clk 0:03:02.8]} 8... Qc7 {[%clk 0:02:56.1]} 9. Nc3 {[%clk 0:03:00.6]} 9... a6
{[%clk 0:02:54.8]} 10. a4 {[%clk 0:02:57.7]} 10... g6 {[%clk 0:02:54.9]} 11. Ne3
{[%clk 0:02:57.7]} 11... Bg7 {[%clk 0:02:54.9]} 12. Ned5 {[%clk 0:02:56.7]}
12... Nxd5 {[%clk 0:02:54.7]} 13. Nxd5 {[%clk 0:02:57.6]} 13... Qc6 {[%clk
0:02:54.8]} 14. Be3 {[%clk 0:02:51.4]} 14... Qc4 {[%clk 0:02:47.7]} 15. b3
{[%clk 0:02:41.5]} 15... Qc8 {[%clk 0:02:46.2]} 16. c4 {[%clk 0:02:37.5]} 16...
Qd8 {[%clk 0:02:45.9]} 17. a5 {[%clk 0:02:35.5]} 17... O-O {[%clk 0:02:45.4]}
18. Qd2 {[%clk 0:02:30]} 18... Rc8 {[%clk 0:02:39.1]} 19. O-O {[%clk 0:02:25.8]}
19... Nc5 {[%clk 0:02:37.8]} 20. Rfb1 {[%clk 0:02:18.8]} 20... Ne6 {[%clk
0:02:36.7]} 21. b4 {[%clk 0:02:16]} 21... Rxc4 {[%clk 0:02:36.1]} 22. Bb6 {[%clk
0:02:05.9]} 22... Qd7 {[%clk 0:02:34.2]} 23. Rc1 {[%clk 0:01:46.5]} 23... Rfc8
{[%clk 0:02:33.4]} 24. Rxc4 {[%clk 0:01:46.5]} 24... Rxc4 {[%clk 0:02:33.5]} 25.
Rc1 {[%clk 0:01:46.9]} 25... Rxc1+ {[%clk 0:01:39.7]} 26. Qxc1 {[%clk
0:01:47.8]} 26... h6 {[%clk 0:01:40.4]} 27. g3 {[%clk 0:01:19]} 27... Qb5 {[%clk
0:01:35.9]} 28. Qc8+ {[%clk 0:01:08.4]} 28... Kh7 {[%clk 0:01:35.9]} 29. Ne7
{[%clk 0:01:06.8]} 29... Bf8 {[%clk 0:01:30.8]} 30. Nd5 {[%clk 0:00:47.5]} 30...
Qc6 {[%clk 0:00:59.2]} 31. Qb8 {[%clk 0:00:11.9]} 31... Kg7 {[%clk 0:00:55.6]}
32. h4 {[%clk 0:00:09.3]} 32... Qc1+ {[%clk 0:00:54.5]} 33. Kg2 {[%clk
0:00:09.8]} 33... Qd2+ {[%clk 0:00:54.6]} 34. Kg1 {[%clk 0:00:09.7]} 34... Qd1+
{[%clk 0:00:51.9]} 35. Kg2 {[%clk 0:00:10.2]} 35... Qe2+ {[%clk 0:00:52]} 36.
Kg1 {[%clk 0:00:10.7]} 36... Qxf3 {[%clk 0:00:51.9]} 37. Qxb7 {[%clk 0:00:09.7]}
37... Qxg3+ {[%clk 0:00:51.8]} 38. Kf1 {[%clk 0:00:09.3]} 38... Qf3+ {[%clk
0:00:47.3]} 39. Kg1 {[%clk 0:00:09.6]} 39... Qxe4 {[%clk 0:00:47.3]} 40. Bf2
{[%clk 0:00:04.8]} 40... Nf4 {[%clk 0:00:46.6]} 0-1

[Event "Early-Titled-Tuesday-Blitz-February-13-2024"]
[Site "Chess.com"]
[Date "2024.02.13"]
[Round "10"]
[White "sergeikim"]
[Black "masterofpuppets2"]
[Result "0-1"]
[WhiteElo "2597"]
[BlackElo "2469"]
[TimeControl "180+1"]
[EndTime "9:58:54 PST"]
[Termination "masterofpuppets2 won by resignation"]

1. d4 {[%clk 0:03:00.9]} 1... Nf6 {[%clk 0:02:57.8]} 2. c4 {[%clk 0:03:00.8]}
2... e6 {[%clk 0:02:57.3]} 3. Nc3 {[%clk 0:03:00.8]} 3... Bb4 {[%clk 0:02:56.8]}
4. Qc2 {[%clk 0:03:01]} 4... d5 {[%clk 0:02:56.4]} 5. a3 {[%clk 0:03:00.9]} 5...
Bxc3+ {[%clk 0:02:50.6]} 6. Qxc3 {[%clk 0:03:01.2]} 6... O-O {[%clk 0:02:50.8]}
7. Nf3 {[%clk 0:03:01.1]} 7... dxc4 {[%clk 0:02:28.8]} 8. Qxc4 {[%clk
0:03:00.7]} 8... b6 {[%clk 0:02:28.9]} 9. g3 {[%clk 0:02:59.6]} 9... Ba6 {[%clk
0:02:24.8]} 10. Qc2 {[%clk 0:02:59.1]} 10... Nbd7 {[%clk 0:02:19.5]} 11. Qc6
{[%clk 0:02:58.8]} 11... Rc8 {[%clk 0:02:16.8]} 12. e4 {[%clk 0:02:51.2]} 12...
Nb8 {[%clk 0:02:07.9]} 13. Qc2 {[%clk 0:02:48]} 13... Bxf1 {[%clk 0:02:00.5]}
14. Kxf1 {[%clk 0:02:48.1]} 14... c5 {[%clk 0:02:00.9]} 15. dxc5 {[%clk
0:02:39.1]} 15... Rxc5 {[%clk 0:01:59.5]} 16. Qe2 {[%clk 0:02:39.4]} 16... Qc8
{[%clk 0:01:50.6]} 17. Kg2 {[%clk 0:02:26.9]} 17... Rc2 {[%clk 0:01:44.5]} 18.
Bd2 {[%clk 0:02:16.7]} 18... Rxb2 {[%clk 0:01:43.1]} 19. Rac1 {[%clk 0:02:08]}
19... Qb7 {[%clk 0:01:41.3]} 20. Rhe1 {[%clk 0:02:04.3]} 20... Rd8 {[%clk
0:01:36.7]} 21. h3 {[%clk 0:02:01.8]} 21... Nbd7 {[%clk 0:01:21.7]} 22. Qe3
{[%clk 0:01:50.7]} 22... Nc5 {[%clk 0:01:17.1]} 23. e5 {[%clk 0:01:44.1]} 23...
Rdxd2 {[%clk 0:00:49.7]} 24. exf6 {[%clk 0:01:41.4]} 24... Rxf2+ {[%clk
0:00:49.5]} 25. Qxf2 {[%clk 0:01:41]} 25... Rxf2+ {[%clk 0:00:49.4]} 26. Kxf2
{[%clk 0:01:41.2]} 26... Nd3+ {[%clk 0:00:49.8]} 27. Kg2 {[%clk 0:01:41.2]}
27... Nxc1 {[%clk 0:00:48]} 28. Rxc1 {[%clk 0:01:40.1]} 28... gxf6 {[%clk
0:00:48.2]} 29. g4 {[%clk 0:01:38.5]} 29... Kg7 {[%clk 0:00:46.7]} 30. Kg3
{[%clk 0:01:38.1]} 30... Qb8+ {[%clk 0:00:43]} 31. Kg2 {[%clk 0:01:37.2]} 31...
Qf4 {[%clk 0:00:43.1]} 32. Rd1 {[%clk 0:01:35.3]} 32... Qa4 {[%clk 0:00:32.2]}
33. Rd3 {[%clk 0:01:32.2]} 33... Qc2+ {[%clk 0:00:29]} 34. Rd2 {[%clk
0:01:32.2]} 34... Qa4 {[%clk 0:00:26.7]} 35. Rd3 {[%clk 0:01:31.7]} 35... Qc6
{[%clk 0:00:24.3]} 36. Kg3 {[%clk 0:01:28.9]} 36... Qc7+ {[%clk 0:00:23.9]} 37.
Kg2 {[%clk 0:01:27.6]} 37... b5 {[%clk 0:00:23.5]} 38. Nd4 {[%clk 0:01:16.5]}
38... Qc4 {[%clk 0:00:20.3]} 39. Rd1 {[%clk 0:01:16.1]} 39... a5 {[%clk
0:00:19.7]} 40. Kf3 {[%clk 0:01:12.8]} 40... b4 {[%clk 0:00:18]} 41. axb4 {[%clk
0:01:12.7]} 41... axb4 {[%clk 0:00:18.1]} 42. Ke3 {[%clk 0:01:11.2]} 42... b3
{[%clk 0:00:16.5]} 43. Rb1 {[%clk 0:01:06.8]} 43... Qc3+ {[%clk 0:00:16.6]} 44.
Ke4 {[%clk 0:01:04.4]} 44... Qxh3 {[%clk 0:00:16.1]} 45. Rxb3 {[%clk 0:01:02.5]}
45... Qxg4+ {[%clk 0:00:15.5]} 46. Kd3 {[%clk 0:01:01.5]} 46... f5 {[%clk
0:00:15]} 47. Rb4 {[%clk 0:01:00.1]} 47... Qd1+ {[%clk 0:00:13.5]} 48. Ke3
{[%clk 0:00:58]} 48... Qe1+ {[%clk 0:00:13.9]} 0-1